bitfinex/quotes_ETHUSD_20220226
["timestamp","ask_amount","ask_price","bid_price","bid_amount"]
[1645859340705,2.29265567,2776.7,2776.6,0.10450676]
[1645859341303,5.79265567,2776.7,2776.6,0.10450676]
[1645859341503,2.29265567,2776.7,2776.6,0.10450676]
[1645859341705,6.79265567,2776.7,2776.6,0.10450676]
[1645859341903,5.79265567,2776.7,2776.6,0.10450676]
[1645859342104,3.29265567,2776.7,2776.6,0.10450676]
[1645859342305,2.29265567,2776.7,2776.6,0.10450676]
[1645859342507,1.0,2776.7,2776.6,0.10450676]
[1645859342808,4.6284,2776.9,2776.6,0.10450676]
[1645859343211,5.6284,2776.9,2776.6,0.10450676]
[1645859343410,1.1284,2776.9,2776.6,0.10450676]
[1645859343609,3.719,2777.2,2776.6,0.10450676]
[1645859343809,4.719,2777.2,2776.6,0.10943697]
[1645859344010,4.719,2777.2,2776.7,0.10450676]
[1645859344852,0.5,2777.2,2776.7,0.10450676]
[1645859345050,0.5,2777.2,2776.8,0.00493003]
[1645859345251,0.5,2777.2,2776.9,0.10450676]
[1645859346152,0.5,2777.2,2776.9,0.10943671]
[1645859346353,0.5,2777.2,2777.0,0.10450676]
[1645859347253,0.5,2777.2,2776.7,0.00324617]
[1645859347254,0.5,2777.2,2777.1,0.10450676]
[1645859347454,0.5,2777.2,2777.0,0.0049299]
[1645859347656,0.5,2777.2,2777.1,0.10450676]
[1645859348102,1.90138994,2777.2,2777.1,0.10450676]
[1645859348509,0.5,2777.2,2777.1,0.10450676]
[1645859348704,0.5,2777.2,2777.0,0.00492986]
[1645859348903,0.5,2777.2,2777.1,0.10450676]
[1645859350113,1.90213361,2777.2,2777.1,0.10450676]
[1645859350509,1.40213361,2777.2,2777.1,0.10450676]
[1645859351111,4.90213361,2777.2,2777.1,0.10450676]
[1645859351509,1.40213361,2777.2,2777.0,0.03411198]
[1645859351750,1.40213361,2777.2,2777.1,0.10468865]
[1645859352156,1.40213361,2777.2,2777.1,0.05468865]
[1645859355060,4.90213361,2777.2,2777.0,0.03378189]
[1645859355255,3.5,2777.2,2777.0,0.03378189]
[1645859355500,3.5,2777.2,2777.0,0.02918212]
[1645859355701,3.5,2777.2,2777.0,0.03378194]
[1645859356207,4.0,2777.2,2777.0,0.03378194]
[1645859356403,0.02914511,2776.9,2776.5,0.01840202]
[1645859356803,1.02336292,2776.8,2776.3,0.00324617]
[1645859357003,1.02336292,2776.8,2776.2,1.48637678]
[1645859357203,1.02336292,2776.8,2776.3,0.67537678]
[1645859357703,1.02336292,2776.8,2776.2,0.97862295]
[1645859358305,1.02336292,2776.8,2776.3,0.67537678]
[1645859358708,1.02336292,2776.8,2776.2,0.97862295]
[1645859358908,0.02914511,2776.9,2776.2,0.97862295]
[1645859359152,0.02914511,2776.9,2776.3,0.67537678]
[1645859359554,0.02914511,2776.9,2776.2,0.67862295]
[1645859359752,0.02914511,2776.9,2776.2,0.97862295]
[1645859360153,1.07539881,2776.7,2776.2,0.97862295]
[1645859360453,1.07539881,2776.7,2776.2,0.67537678]
[1645859360854,1.07539881,2776.7,2776.4,0.00462583]
[1645859361458,1.07539881,2776.7,2776.2,0.00324617]
[1645859361657,1.07539881,2776.7,2776.1,0.97537678]
[1645859361858,6.03844511,2776.9,2776.4,0.00470476]
[1645859361859,2.17884511,2776.9,2776.4,0.00470476]
[1645859362263,1.17884511,2776.9,2776.4,0.00470476]
[1645859362660,1.17884511,2776.9,2776.3,0.00324617]
[1645859362905,1.17884511,2776.9,2776.2,0.67537678]
[1645859362906,0.02914511,2776.9,2776.2,0.67537678]
[1645859363101,0.02914511,2776.9,2776.5,0.00470467]
[1645859363304,1.20151197,2776.8,2776.5,0.00470467]
[1645859364003,1.20151197,2776.8,2776.3,0.00324617]
[1645859364204,1.20151197,2776.8,2776.5,0.00470467]
[1645859365204,1.20151197,2776.8,2776.3,0.1361747]
[1645859365407,3.5,2776.7,2776.5,0.00461877]
[1645859365608,3.5,2776.7,2776.1,0.01847787]
[1645859365609,10.94,2776.4,2776.1,0.01847787]
[1645859365806,10.94,2776.4,2775.5,1.58046416]
[1645859365807,11.2996,2776.2,2775.5,1.58046416]
[1645859366006,16.6017,2776.1,2775.5,0.67537678]
[1645859366206,1.20597918,2776.0,2775.5,0.67537678]
[1645859366411,0.90109,2775.8,2775.4,0.67537678]
[1645859366646,3.5,2775.7,2775.3,0.62537678]
[1645859366845,4.40111,2775.7,2775.3,0.62537678]
[1645859367046,5.40111,2775.7,2775.4,0.04035806]
[1645859367446,5.40111,2775.7,2775.1,0.5]
[1645859367447,10.94,2775.5,2775.1,0.5]
[1645859367647,11.84138,2775.3,2775.1,0.5]
[1645859367847,13.25019977,2775.3,2775.1,0.5]
[1645859368050,14.25019977,2775.3,2775.1,0.5]
[1645859368250,1.26104,2775.0,2774.2,0.90508738]
[1645859368450,1.26104,2775.0,2773.9,1.35763107]
[1645859368451,1.34777077,2774.6,2774.1,0.90508738]
[1645859368649,1.34777077,2774.6,2774.0,0.80508738]
[1645859368849,1.34777077,2774.6,2774.4,0.1296]
[1645859369651,2.24922077,2774.6,2774.4,0.1296]
[1645859370400,2.24922077,2774.6,2774.4,0.00494935]
[1645859371194,2.24922077,2774.6,2773.4,9.51931843]
[1645859371397,3.5,2774.5,2774.4,0.00494935]
[1645859371596,2.24922077,2774.6,2774.4,0.00494935]
[1645859372194,2.24922077,2774.6,2774.5,0.09383599]
[1645859372602,2.24922077,2774.6,2774.4,0.00494935]
[1645859372801,2.24922077,2774.6,2774.5,0.09383599]
[1645859373003,5.74922077,2774.6,2774.5,0.09383599]
[1645859373606,7.10882077,2774.6,2773.6,0.00323741]
[1645859373808,0.90158,2774.3,2773.6,0.00323741]
[1645859374002,4.40158,2774.3,2774.0,0.01714286]
[1645859374281,5.40158,2774.3,2774.0,0.01714286]
[1645859374875,1.16970174,2774.1,2773.6,0.00323741]
[1645859375075,1.16970174,2774.1,2773.5,0.09389693]
[1645859375575,1.16970174,2774.1,2773.6,0.09389693]
[1645859375776,1.16970174,2774.1,2773.7,0.09389693]
[1645859376078,1.16970174,2774.1,2773.3,0.00323741]
[1645859376276,1.16970174,2774.1,2773.3,0.09369558]
[1645859376476,1.16970174,2774.1,2773.3,0.09693299]
[1645859376477,1.92547206,2774.1,2773.3,0.09693299]
[1645859377079,1.92547206,2774.1,2773.4,0.511]
[1645859377278,1.92547206,2774.1,2773.5,0.09369558]
[1645859378102,1.92547206,2774.1,2773.6,0.09369558]
[1645859378301,1.92547206,2774.1,2773.2,0.811]
[1645859378602,1.92547206,2774.1,2773.7,0.00479604]
[1645859379304,10.94,2773.9,2773.7,0.00479604]
[1645859379512,16.7996,2773.6,2772.7,0.25]
[1645859379710,3.5,2773.8,2772.2,3.1650535]
[1645859379711,0.3596,2772.8,2772.2,3.1650535]
[1645859379906,1.0,2773.3,2773.2,0.01918721]
[1645859380505,3.5,2773.6,2773.2,0.01918721]
[1645859380703,0.9019,2773.3,2773.2,0.01918721]
[1645859380905,0.9019,2773.3,2772.4,0.511]
[1645859381103,0.9019,2773.3,2772.3,0.25]
[1645859381306,3.5,2773.2,2772.3,0.25]
[1645859381505,0.9019,2773.3,2772.3,0.25]
[1645859381506,0.1441,2773.3,2772.3,0.25]
[1645859382246,0.1441,2773.3,2772.3,3.75]
[1645859382247,1.94791,2773.3,2772.3,3.75]
[1645859382447,1.80381,2773.3,2772.3,0.3941]
[1645859382644,1.80381,2773.3,2772.3,0.6941]
[1645859382846,1.80381,2773.3,2772.4,0.25]
[1645859383247,1.80381,2773.3,2772.3,0.3941]
[1645859383447,1.33906647,2773.2,2772.7,0.00463865]
[1645859383647,1.80381,2773.3,2772.7,0.00463865]
[1645859383846,2.80381,2773.3,2772.7,0.00463865]
[1645859384146,1.80381,2773.3,2772.7,0.00463865]
[1645859384347,2.80381,2773.3,2772.7,0.00463865]
[1645859384548,2.5,2773.2,2772.3,0.4442]
[1645859384751,3.88993392,2773.2,2772.9,0.00463852]
[1645859385251,2.5,2773.2,2772.9,0.00463852]
[1645859385703,2.5,2773.2,2772.3,0.11598168]
[1645859385903,2.5,2773.2,2772.9,0.00464882]
[1645859386302,1.18745995,2773.0,2772.9,0.00464882]
[1645859386502,2.5,2773.2,2772.9,0.00464882]
[1645859386503,3.4019916,2773.2,2772.9,0.00464882]
[1645859386703,4.4019916,2773.2,2772.9,0.00464882]
[1645859386903,3.7615916,2773.2,2772.3,0.11598168]
[1645859387104,4.4019916,2773.2,2772.3,0.41598168]
[1645859387308,4.4019916,2773.2,2772.3,0.11598168]
[1645859387703,4.4019916,2773.2,2772.2,2.64594312]
[1645859388307,4.4019916,2773.2,2772.3,0.00235814]
[1645859388807,1.0835526,2772.7,2772.3,0.00235814]
[1645859389009,3.39487176,2772.7,2772.3,0.00235814]
[1645859389256,3.39487176,2772.7,2772.2,2.34594312]
[1645859389257,4.75447176,2772.7,2772.2,2.34594312]
[1645859389661,0.0049634,2772.6,2772.3,0.00496409]
[1645859389860,0.85219,2772.5,2772.3,0.00496409]
[1645859390458,0.85219,2772.5,2772.2,2.34594312]
[1645859390660,10.94,2772.3,2772.2,2.34594312]
[1645859390859,14.44,2772.3,2772.2,2.34594312]
[1645859391060,15.44,2772.3,2772.2,2.34594312]
[1645859391858,4.5,2772.3,2772.2,2.34594312]
[1645859392059,4.5,2772.3,2772.2,1.04928743]
[1645859392260,17.05258075,2772.2,2772.1,0.00496412]
[1645859392464,6.11258075,2772.2,2772.1,0.00496412]
[1645859392660,7.25668075,2772.2,2772.1,0.00496412]
[1645859392907,5.1441,2772.2,2772.0,0.000801]
[1645859393103,6.0,2772.2,2772.0,0.00576521]
[1645859393705,16.94,2772.2,2772.0,0.00576521]
[1645859393907,1.80478,2772.1,2772.0,0.00576521]
[1645859394107,12.74478,2772.1,2772.0,0.000801]
[1645859394306,13.74478,2772.1,2772.0,0.000801]
[1645859394509,3.86205736,2772.1,2772.0,0.000801]
[1645859394707,1.0,2772.1,2772.0,0.000801]
[1645859394907,2.74854449,2772.3,2772.0,0.000801]
[1645859394908,1.94343449,2772.3,2772.0,0.000801]
[1645859395307,0.94343449,2772.3,2772.0,0.000801]
[1645859395710,1.95533142,2772.3,2772.0,0.000801]
[1645859396409,2.85762142,2772.3,2772.0,0.000801]
[1645859396855,3.85762142,2772.3,2772.0,0.00542745]
[1645859397057,10.94,2772.2,2772.0,0.00542745]
[1645859397255,0.00476318,2771.9,2771.8,0.01803872]
[1645859401116,0.00476318,2771.9,2771.8,1.13314047]
[1645859401320,0.00476318,2771.9,2771.8,2.00374047]
[1645859401618,0.00476318,2771.9,2771.8,2.44804047]
[1645859402216,0.00476318,2771.9,2771.8,2.08844047]
[1645859403217,0.00476318,2771.9,2771.8,2.44804047]
[1645859404847,0.03605471,2771.9,2771.8,2.44804047]
[1645859406153,0.01582232,2771.9,2771.8,7.44804047]
[1645859406350,0.01582232,2771.9,2771.8,14.75432876]
[1645859406653,0.004641,2772.5,2772.0,0.3596]
[1645859406856,0.004641,2772.5,2772.3,0.3596]
[1645859407053,0.004641,2772.5,2772.4,2.35637299]
[1645859407253,0.90181,2773.5,2772.4,2.35637299]
[1645859407453,10.03852558,2774.5,2772.7,0.3596]
[1645859407454,4.7371,2774.0,2772.7,0.3596]
[1645859407654,4.7371,2774.0,2772.9,0.3596]
[1645859407898,0.1441,2774.0,2773.0,0.87381137]
[1645859408104,0.1441,2774.0,2773.1,0.00321137]
[1645859408303,3.5,2774.1,2773.5,1.06286587]
[1645859408503,4.54564,2774.3,2773.5,1.06286587]
[1645859408707,5.44724,2774.3,2773.5,0.3]
[1645859409104,5.44724,2774.3,2773.2,0.811]
[1645859409310,5.30314,2774.3,2773.2,0.3]
[1645859409508,5.66274,2774.3,2773.2,0.3]
[1645859409710,5.66274,2774.3,2772.9,0.25]
[1645859409711,1.30550034,2773.4,2772.9,0.25]
[1645859409909,0.90188,2773.4,2772.5,0.511]
[1645859410713,0.5037,2773.8,2772.5,0.511]
[1645859410912,1.34083352,2773.5,2772.7,1.24642384]
[1645859411108,0.00261973,2773.1,2772.8,0.511]
[1645859412146,0.1441,2773.8,2772.8,0.511]
[1645859412352,0.00261973,2773.1,2772.8,0.511]
[1645859413356,4.5,2773.7,2772.8,0.511]
[1645859413554,0.00496556,2773.1,2772.8,0.511]
[1645859414553,1.0,2773.7,2772.9,0.09193946]
[1645859414753,0.00496556,2773.1,2773.0,0.511]
[1645859414955,0.00496556,2773.1,2773.0,0.60293946]
[1645859415154,0.00496556,2773.1,2773.0,0.90293946]
[1645859415395,0.00496556,2773.1,2773.0,1.26253946]
[1645859415697,0.03995268,2773.8,2773.0,1.26253946]
[1645859415900,0.03995268,2773.8,2773.1,0.23603946]
[1645859416195,0.03995268,2773.8,2773.2,0.60293946]
[1645859416395,0.03995268,2773.8,2773.3,0.23603946]
[1645859416600,0.03995268,2773.8,2773.6,1.43324134]
[1645859416803,0.03995268,2773.8,2773.6,1.73324134]
[1645859417005,0.03995268,2773.8,2773.6,2.24424134]
[1645859417203,0.00496505,2773.7,2773.6,0.511]
[1645859417805,0.00416505,2773.7,2773.6,0.511]
[1645859418005,0.03995268,2773.8,2773.1,0.51419486]
[1645859418205,0.03995268,2773.8,2773.2,0.09194155]
[1645859418408,0.03995268,2773.8,2773.3,0.511]
[1645859418605,0.03995268,2773.8,2773.4,0.09194155]
[1645859418805,0.03995268,2773.8,2773.3,0.3]
[1645859419247,0.03995268,2773.8,2773.2,0.00319486]
[1645859419553,0.03995268,2773.8,2773.2,0.09207906]
[1645859420956,0.03995268,2773.8,2773.2,0.45167906]
[1645859421155,0.03995268,2773.8,2773.3,0.09207906]
[1645859421357,0.03995268,2773.8,2773.4,0.09207906]
[1645859421557,0.03995268,2773.8,2773.1,2.05669177]
[1645859421755,0.03995268,2773.8,2773.2,0.09219479]
[1645859421956,0.00496501,2773.7,2773.2,0.09219479]
[1645859422560,0.00496501,2773.7,2773.1,0.00319486]
[1645859422561,1.40606925,2773.6,2773.1,0.00319486]
[1645859422759,1.40606925,2773.6,2772.9,0.1441]
[1645859422760,3.5,2773.5,2773.0,0.09230047]
[1645859423004,1.14527774,2773.1,2773.0,0.09230047]
[1645859423504,1.14527774,2773.1,2773.0,7.2124]
[1645859423701,0.90186,2773.4,2773.0,7.2124]
[1645859423902,0.00463744,2773.5,2773.0,7.2124]
[1645859424104,1.04592,2773.7,2773.0,7.2124]
[1645859424105,0.90182,2773.7,2773.0,7.2124]
[1645859424302,0.90182,2773.7,2773.1,0.09237714]
[1645859424303,1.40616679,2773.6,2773.1,0.09237714]
[1645859424503,0.00463755,2773.3,2773.1,0.09237714]
[1645859424704,1.07653741,2773.2,2773.1,0.09237714]
[1645859424903,0.00463755,2773.3,2773.1,0.09237714]
[1645859425403,1.0,2773.6,2773.1,0.09237714]
[1645859425604,0.00463755,2773.3,2773.1,0.09237714]
[1645859426305,1.29930714,2773.3,2773.1,0.09237714]
[1645859426504,1.29466959,2773.3,2773.1,0.09237714]
[1645859426759,1.29930714,2773.3,2773.1,0.09237714]
[1645859427164,1.29930714,2773.3,2773.0,7.2124]
[1645859427764,1.29466959,2773.3,2773.0,7.2124]
[1645859427962,1.29932932,2773.3,2773.0,7.2124]
[1645859428163,0.00465973,2773.3,2773.0,7.2124]
[1645859428369,3.50465973,2773.3,2773.0,7.2124]
[1645859428763,4.50465973,2773.3,2773.0,7.2124]
[1645859428965,5.40196,2773.3,2773.0,7.1624]
[1645859429167,1.43246161,2773.1,2773.0,7.1624]
[1645859429365,1.90661973,2773.3,2773.0,7.1624]
[1645859429565,1.94600879,2773.3,2773.0,7.1624]
[1645859429766,0.94600879,2773.3,2773.0,7.1624]
[1645859430170,0.94134906,2773.3,2773.0,7.1624]
[1645859430400,0.94600879,2773.3,2773.0,7.1624]
[1645859431408,0.94134906,2773.3,2773.0,7.1624]
[1645859431611,0.94600729,2773.3,2773.0,7.1624]
[1645859431906,1.28211894,2773.2,2773.0,7.1624]
[1645859432707,1.28677721,2773.2,2773.0,7.1624]
[1645859433712,1.28211894,2773.2,2773.0,7.1624]
[1645859433911,1.28677721,2773.2,2773.0,7.1624]
[1645859434852,1.28211894,2773.2,2773.0,7.1624]
[1645859435053,1.40618005,2773.1,2773.0,7.1624]
[1645859435254,2.28677732,2773.2,2773.0,7.1624]
[1645859435554,1.28677732,2773.2,2773.0,7.1624]
[1645859436055,1.28211894,2773.2,2773.0,7.1624]
[1645859436257,1.28677732,2773.2,2773.0,7.1624]
[1645859437255,1.28211894,2773.2,2773.0,7.1624]
[1645859437658,0.00465838,2773.2,2773.0,7.1624]
[1645859437902,0.00465838,2773.2,2773.1,0.09258711]
[1645859438607,0.03938906,2773.3,2773.1,0.09258711]
[1645859438811,0.04404739,2773.3,2773.0,7.1624]
[1645859439005,0.04404739,2773.3,2773.1,0.09261957]
[1645859439207,0.04404739,2773.3,2773.0,7.1624]
[1645859439406,0.04404739,2773.3,2773.1,0.09260102]
[1645859439613,0.04404739,2773.3,2773.0,7.1624]
[1645859439806,0.03938906,2773.3,2773.0,7.1624]
[1645859440408,0.03938906,2773.3,2773.1,0.09266397]
[1645859440807,0.03938906,2773.3,2773.0,7.1624]
[1645859440808,4.44134906,2773.3,2773.0,7.1624]
[1645859441008,1.40825054,2773.2,2773.0,7.1624]
[1645859442256,0.94134906,2773.3,2773.1,0.09271351]
[1645859442455,1.41003746,2773.2,2773.1,0.09271351]
[1645859442654,1.41500289,2773.2,2773.1,0.09271351]
[1645859443257,1.41003746,2773.2,2773.1,0.09271351]
[1645859446305,0.07433493,2773.3,2773.1,0.09271351]
[1645859446903,0.06969735,2773.3,2773.2,0.1441]
[1645859447104,0.06969735,2773.3,2773.2,0.23681351]
[1645859447305,0.07433489,2773.3,2773.2,0.23681351]
[1645859448209,0.06969735,2773.3,2773.2,0.23681351]
[1645859448409,0.06969735,2773.3,2773.2,1.10741351]
[1645859448608,0.06969735,2773.3,2773.2,1.40741351]
[1645859449861,0.06969735,2773.3,2773.2,1.26331351]
[1645859452065,0.06969735,2773.3,2773.2,0.90371351]
[1645859452265,0.06969735,2773.3,2773.2,0.09271351]
[1645859453021,0.06969735,2773.3,2773.1,0.09271351]
[1645859453219,0.06969735,2773.3,2773.2,0.09271351]
[1645859453620,0.06969735,2773.3,2773.1,0.09271351]
[1645859453821,0.06969735,2773.3,2773.2,0.09271351]
[1645859454020,1.48004033,2773.3,2773.2,0.09271351]
[1645859454223,1.48004033,2773.3,2773.1,0.09271351]
[1645859454426,1.48004033,2773.3,2773.0,7.1624]
[1645859454427,0.06969735,2773.3,2773.2,0.09271351]
[1645859454622,1.48004817,2773.3,2773.2,0.09271351]
[1645859454821,1.48004817,2773.3,2773.1,0.09271351]
[1645859455019,0.06969735,2773.3,2773.2,0.09271351]
[1645859455219,1.48004017,2773.3,2773.2,0.09271351]
[1645859455420,1.48004017,2773.3,2773.1,0.09271351]
[1645859455622,0.06969735,2773.3,2773.1,0.09271351]
[1645859456851,1.41028668,2773.2,2773.1,0.09271351]
[1645859459055,1.41028668,2773.2,2773.0,7.1624]
[1645859459256,1.41028668,2773.2,2773.1,0.09278766]
[1645859459457,1.41028668,2773.2,2773.0,7.1624]
[1645859459657,1.41028668,2773.2,2773.1,0.09278907]
[1645859459856,1.41028668,2773.2,2773.0,7.1624]
[1645859460503,1.41495446,2773.2,2773.1,0.09278226]
[1645859461300,1.41028668,2773.2,2773.1,0.09278226]
[1645859464148,0.06969735,2773.3,2773.2,0.17222021]
[1645859464149,0.07436508,2773.3,2773.2,0.17222021]
[1645859464350,3.57436508,2773.3,2773.2,0.26500247]
[1645859464551,6.35136399,2773.3,2773.2,0.26500247]
[1645859464751,4.9633929,2773.3,2773.2,0.26500247]
[1645859464947,4.95872517,2773.3,2773.2,0.26500247]
[1645859465349,5.95872517,2773.3,2773.2,0.17222021]
[1645859465550,5.95872517,2773.3,2773.2,0.26691172]
[1645859466351,7.02876645,2773.3,2773.2,0.26691172]
[1645859466756,7.02876645,2773.3,2773.2,0.17222021]
[1645859467557,17.96876645,2773.3,2773.2,0.17222021]
[1645859468004,17.94,2773.2,2773.0,7.1624]
[1645859468205,17.65421721,2773.1,2773.0,7.1624]
[1645859468407,0.9021169,2773.0,2772.4,0.00319486]
[1645859468613,0.9021169,2773.0,2772.2,0.00466958]
[1645859468614,16.20955721,2772.9,2772.3,0.09155212]
[1645859468806,16.20955721,2772.9,2772.4,0.09155212]
[1645859468807,10.94,2772.7,2772.4,0.09155212]
[1645859469010,1.38028548,2772.1,2771.9,0.00319486]
[1645859469207,1.38028548,2772.1,2771.8,0.01803872]
[1645859469208,2.28263548,2772.1,2771.8,0.01803872]
[1645859469408,3.5,2772.0,2771.9,0.09161394]
[1645859469610,2.28263548,2772.1,2771.9,0.09161394]
[1645859469810,5.91022549,2772.0,2771.9,0.09161394]
[1645859470012,5.81256549,2772.0,2771.9,0.09161394]
[1645859470211,6.81256549,2772.0,2771.9,0.09161394]
[1645859470511,17.75256549,2772.0,2771.9,0.09161394]
[1645859471011,5.5,2771.9,2770.9,0.14101955]
[1645859471211,1.33145452,2771.3,2770.8,5.82611955]
[1645859471514,1.33145452,2771.3,2770.3,0.88154978]
[1645859471515,4.5,2771.2,2770.3,0.88154978]
[1645859471764,4.5,2771.2,2770.3,0.25]
[1645859471765,8.0,2771.2,2770.3,0.25]
[1645859471964,4.5,2771.2,2770.3,0.25]
[1645859472463,0.90262,2771.1,2770.3,1.37485179]
[1645859472670,4.40262,2771.1,2770.0,10.18500173]
[1645859472968,4.40262,2771.1,2770.0,10.48500173]
[1645859472969,0.90262,2771.1,2770.0,10.48500173]
[1645859473167,3.5,2771.0,2770.0,10.48500173]
[1645859473366,0.90262,2771.1,2770.0,9.82540173]
[1645859473367,1.80566,2770.8,2770.0,9.82540173]
[1645859473568,0.90282,2771.1,2770.0,9.82540173]
[1645859473766,0.90282,2771.1,2770.4,0.00496498]
[1645859474569,0.90282,2771.1,2770.0,10.12540173]
[1645859474769,0.90282,2771.1,2770.6,0.00496481]
[1645859475810,1.163,2771.3,2770.5,2.07129138]
[1645859476010,3.5,2771.4,2770.7,0.00496472]
[1645859476210,3.6443,2771.6,2770.7,0.00496472]
[1645859476413,0.3596,2771.5,2770.7,0.00496472]
[1645859476609,3.65724355,2771.6,2770.7,0.00496472]
[1645859476610,0.5039,2771.4,2770.7,0.00496472]
[1645859476809,0.1443,2771.4,2770.7,0.00496472]
[1645859477009,0.90267,2771.1,2770.0,9.82540173]
[1645859477209,0.90267,2771.1,2770.9,0.00496455]
[1645859477210,1.91427144,2771.1,2770.9,0.00496455]
[1645859478021,10.94,2771.0,2770.9,0.00496455]
[1645859478220,13.10538,2770.8,2770.1,0.00318322]
[1645859478416,14.00822,2770.8,2770.0,9.82540173]
[1645859478719,0.90281,2770.6,2770.4,0.01986135]
[1645859479353,10.94,2770.3,2770.1,0.00318322]
[1645859479550,14.44,2770.2,2770.0,9.82540173]
[1645859479750,11.84308,2770.2,2770.0,9.82540173]
[1645859479949,12.84308,2770.2,2770.0,9.82540173]
[1645859480351,3.5,2770.1,2770.0,9.82540173]
[1645859480555,10.94,2770.1,2770.0,9.82540173]
[1645859480754,10.94,2770.1,2769.8,0.00318322]
[1645859480755,10.94,2769.9,2769.8,0.00318322]
[1645859480952,0.3596,2769.7,2768.9,0.00318322]
[1645859481154,0.3596,2769.7,2768.7,0.00318322]
[1645859481155,0.90327,2769.4,2768.7,0.00318322]
[1645859481353,4.76287,2769.4,2768.5,0.00318322]
[1645859481651,4.76287,2769.4,2768.7,1.28875434]
[1645859481652,5.3065352,2769.4,2768.7,1.28875434]
[1645859481852,2.7565352,2769.4,2768.7,1.13875434]
[1645859482051,2.7565352,2769.4,2768.8,0.00233801]
[1645859482250,3.5,2769.3,2768.8,0.00233801]
[1645859482450,3.6598352,2769.4,2768.8,0.00233801]
[1645859482650,1.90327,2769.4,2768.8,0.00233801]
[1645859482908,0.90327,2769.4,2768.3,0.00318322]
[1645859483307,11.84327,2769.4,2769.0,0.00233789]
[1645859483510,11.84331,2769.3,2769.0,0.00233789]
[1645859483709,0.90343,2769.1,2769.0,0.00233789]
[1645859484110,0.90343,2769.1,2768.1,0.00318322]
[1645859484410,0.90341,2769.0,2768.0,0.42587426]
[1645859484612,0.90341,2769.0,2767.9,0.55]
[1645859484613,12.20301,2769.0,2768.2,0.04092649]
[1645859485014,1.26301,2769.0,2768.2,0.04092649]
[1645859485211,0.90341,2769.0,2768.2,0.04092649]
[1645859485614,0.90341,2769.0,2768.3,1.08551432]
[1645859486411,0.90341,2769.0,2768.2,0.04092649]
[1645859486654,4.40341,2769.0,2768.2,0.04092649]
[1645859486856,4.40341,2769.0,2768.4,0.00233483]
[1645859487058,0.90341,2769.0,2768.4,0.00233483]
[1645859487258,2.0,2769.6,2768.4,0.00233483]
[1645859487656,15.4496,2769.7,2768.4,0.00233483]
[1645859487856,15.4496,2769.7,2768.3,0.6596]
[1645859488063,3.5,2769.6,2768.4,0.00233483]
[1645859488260,4.5,2769.6,2768.4,0.00233483]
[1645859488459,4.5,2769.6,2769.0,1.23565147]
[1645859488662,1.0,2769.6,2769.0,1.23565147]
[1645859488859,3.8596,2769.7,2769.0,1.23565147]
[1645859489261,0.00496718,2769.5,2769.0,1.23565147]
[1645859490264,4.5,2769.7,2769.0,1.23565147]
[1645859490510,0.00496713,2769.5,2769.0,1.23565147]
[1645859490714,0.00496713,2769.5,2769.1,3.5]
[1645859490911,0.00496713,2769.5,2769.2,0.8706]
[1645859491110,0.00496713,2769.5,2769.2,5.8706]
[1645859491410,0.2691,2771.0,2770.7,1.38082637]
[1645859491625,0.2691,2771.0,2769.3,7.222]
[1645859491626,0.2691,2771.0,2769.6,0.8706]
[1645859491810,0.2691,2771.0,2769.6,1.1706]
[1645859492011,0.2691,2771.0,2769.7,3.86277131]
[1645859492212,0.2691,2771.0,2769.9,0.3596]
[1645859492414,0.2691,2771.0,2769.6,0.3]
[1645859492415,0.2691,2771.0,2770.0,0.51417131]
[1645859492612,0.2691,2771.0,2770.0,0.511]
[1645859492811,0.2691,2771.0,2770.1,0.00317131]
[1645859493014,0.00496638,2770.6,2770.1,0.00317131]
[1645859493219,0.00496638,2770.6,2770.2,1.16832909]
[1645859493816,1.17187,2771.0,2770.2,1.16832909]
[1645859493817,3.5,2770.9,2770.2,1.16832909]
[1645859494018,14.7996,2770.9,2770.2,1.16832909]
[1645859494265,0.00496642,2770.5,2769.8,0.00317131]
[1645859494464,0.00496642,2770.5,2769.6,0.00317131]
[1645859494665,0.00496642,2770.5,2769.6,0.30317131]
[1645859494864,0.00496642,2770.5,2769.7,0.00317131]
[1645859495066,4.6443,2770.9,2769.7,0.00317131]
[1645859495266,0.00496672,2770.2,2769.7,0.00317131]
[1645859495470,0.00496672,2770.2,2769.8,7.2207]
[1645859496265,15.7996,2770.8,2769.8,7.2207]
[1645859496465,0.00264044,2770.1,2769.9,0.00317131]
[1645859496667,0.00264044,2770.1,2769.8,7.2207]
[1645859496869,0.00264044,2770.1,2770.0,1.42029119]
[1645859497068,0.00264044,2770.1,2769.8,7.2207]
[1645859497469,11.2996,2770.5,2769.8,7.2207]
[1645859497668,0.00264044,2770.1,2769.9,0.00317131]
[1645859497925,0.00264044,2770.1,2769.8,7.2207]
[1645859497926,0.00264044,2770.1,2769.8,8.27183547]
[1645859498126,0.00264044,2770.1,2769.8,7.2207]
[1645859498530,3.8596,2770.5,2769.8,7.2207]
[1645859498928,11.2996,2770.4,2769.8,7.2207]
[1645859499128,14.44,2770.3,2769.8,7.2207]
[1645859499528,0.02897974,2770.2,2769.8,7.2207]
[1645859499929,10.94,2770.1,2769.8,7.2207]
[1645859500129,0.93201974,2770.2,2769.8,7.2207]
[1645859500130,10.94,2769.9,2769.8,7.2207]
[1645859500430,14.44,2769.9,2769.8,7.2207]
[1645859501430,15.44,2769.9,2769.8,7.2207]
[1645859501655,15.5844,2769.9,2769.8,7.2108459]
[1645859502753,16.5844,2769.9,2769.8,7.2108459]
[1645859503356,16.5844,2769.9,2769.5,0.25]
[1645859503357,7.0,2769.8,2769.5,0.25]
[1645859503561,7.0,2769.8,2768.4,0.00317131]
[1645859503562,10.94,2769.5,2768.4,0.00317131]
[1645859503759,11.2996,2769.2,2768.4,0.00814135]
[1645859503962,3.5,2769.1,2768.4,0.00497004]
[1645859504159,11.2996,2769.2,2768.4,0.00497004]
[1645859504458,1.35963259,2768.8,2768.4,0.00497004]
[1645859504659,3.5,2768.7,2768.2,0.04092649]
[1645859504858,1.35963259,2768.8,2768.2,0.04092649]
[1645859505057,1.35963259,2768.8,2768.1,0.04149492]
[1645859505258,15.0292726,2768.8,2768.1,0.04149492]
[1645859505510,11.5292726,2768.8,2768.1,0.04149492]
[1645859505910,3.5,2768.7,2768.1,0.04149492]
[1645859506114,11.5292726,2768.8,2768.1,0.04149492]